[Event "Titled Tuesday Blitz June 27 Early 2023"]
[White "Manukian, Artak"]
[Black "Megalios, Konstantinos"]
[WhiteFideId "13301373"]
[BlackFideId "4238044"]
[WhiteElo "2419"]
[BlackElo "2634"]
[Result "1-0"]
[Round "6"]
[TimeControl "180+2"]
[Date "2023.06.27"]
[WhiteClock "0:02:33"]
[BlackClock "0:00:07"]
[Board "88"]

1. e4 {[%clk 0:03:00]}  e5 {[%clk 0:02:59]} 2. Nf3 {[%clk 0:03:00]}  Nc6 {[%clk 0:02:59]} 3. d4 {[%clk 0:03:00]}  exd4 {[%clk 0:02:58]} 4. Nxd4 {[%clk 0:03:01]}  Bc5 {[%clk 0:02:57]} 5. Nxc6 {[%clk 0:03:01]}  bxc6 {[%clk 0:02:57]} 6. Bc4 {[%clk 0:03:01]}  Nf6 {[%clk 0:02:27]} 7. e5 {[%clk 0:02:58]}  Ne4 {[%clk 0:01:30]} 8. Bxf7+ {[%clk 0:02:54]}  Kxf7 {[%clk 0:01:28]} 9. Qf3+ {[%clk 0:02:54]}  Nf6 {[%clk 0:01:24]} 10. exf6 {[%clk 0:02:48]}  Qxf6 {[%clk 0:01:24]} 11. Qh5+ {[%clk 0:02:47]}  Qg6 {[%clk 0:01:07]} 12. Qxc5 {[%clk 0:02:46]}  Re8+ {[%clk 0:00:53]} 13. Be3 {[%clk 0:02:45]}  Qxg2 {[%clk 0:00:22]} 14. Rf1 {[%clk 0:02:44]}  Ba6 {[%clk 0:00:20]} 15. c4 {[%clk 0:02:37]}  Re4 {[%clk 0:00:17]} 16. Nd2 {[%clk 0:02:34]}  d6 {[%clk 0:00:09]} 17. Qf5+ {[%clk 0:02:33]}  Kg8 {[%clk 0:00:07]} 18. Qxe4 {[%clk 0:02:33]} 1-0


[Site "https://www.chess.com"]

[Event "Titled Tuesday Blitz June 27 Early 2023"]
[White "Rosh Jain"]
[Black "Chen, Justin"]
[WhiteFideId "25789465"]
[BlackFideId "2098199"]
[WhiteElo "2299"]
[BlackElo "2623"]
[Result "0-1"]
[Round "6"]
[TimeControl "180+2"]
[Date "2023.06.27"]
[WhiteClock "0:00:36"]
[BlackClock "0:00:04"]
[Board "90"]

1. e4 {[%clk 0:03:00]}  e5 {[%clk 0:02:59]} 2. Nf3 {[%clk 0:03:00]}  Nf6 {[%clk 0:02:59]} 3. Nxe5 {[%clk 0:02:59]}  Nc6 {[%clk 0:02:57]} 4. Nf3 {[%clk 0:02:57]}  Nxe4 {[%clk 0:02:57]} 5. Nc3 {[%clk 0:02:56]}  Nxc3 {[%clk 0:02:25]} 6. dxc3 {[%clk 0:02:55]}  Be7 {[%clk 0:02:23]} 7. Bd3 {[%clk 0:02:55]}  O-O {[%clk 0:02:23]} 8. O-O {[%clk 0:02:55]}  d5 {[%clk 0:02:23]} 9. Be3 {[%clk 0:02:54]}  Bg4 {[%clk 0:02:22]} 10. h3 {[%clk 0:02:54]}  Bh5 {[%clk 0:02:21]} 11. Be2 {[%clk 0:02:54]}  Re8 {[%clk 0:02:18]} 12. Nd4 {[%clk 0:02:53]}  Bxe2 {[%clk 0:02:17]} 13. Qxe2 {[%clk 0:02:51]}  Nxd4 {[%clk 0:02:09]} 14. cxd4 {[%clk 0:02:52]}  c6 {[%clk 0:02:02]} 15. Qf3 {[%clk 0:02:52]}  Qd6 {[%clk 0:01:58]} 16. c3 {[%clk 0:02:52]}  Qf6 {[%clk 0:01:50]} 17. Bf4 {[%clk 0:02:52]}  Kf8 {[%clk 0:01:32]} 18. Qg3 {[%clk 0:02:47]}  Qg6 {[%clk 0:01:29]} 19. Rfe1 {[%clk 0:02:43]}  Qxg3 {[%clk 0:01:24]} 20. Bxg3 {[%clk 0:02:44]}  f6 {[%clk 0:01:18]} 21. Re6 {[%clk 0:02:39]}  Kf7 {[%clk 0:01:18]} 22. Rae1 {[%clk 0:02:38]}  Bf8 {[%clk 0:01:18]} 23. Rxe8 {[%clk 0:02:36]}  Rxe8 {[%clk 0:01:19]} 24. Rxe8 {[%clk 0:02:36]}  Kxe8 {[%clk 0:01:20]} 25. f3 {[%clk 0:02:36]}  Kd7 {[%clk 0:01:16]} 26. Kf2 {[%clk 0:02:36]}  Ke6 {[%clk 0:01:14]} 27. Ke3 {[%clk 0:02:36]}  h5 {[%clk 0:01:12]} 28. h4 {[%clk 0:02:36]}  Be7 {[%clk 0:01:09]} 29. Bb8 {[%clk 0:02:35]}  a6 {[%clk 0:01:09]} 30. g4 {[%clk 0:02:33]}  g6 {[%clk 0:01:08]} 31. Bf4 {[%clk 0:02:27]}  c5 {[%clk 0:00:57]} 32. dxc5 {[%clk 0:02:23]}  Bxc5+ {[%clk 0:00:58]} 33. Ke2 {[%clk 0:02:19]}  f5 {[%clk 0:00:48]} 34. gxh5 {[%clk 0:02:15]}  gxh5 {[%clk 0:00:49]} 35. Bg5 {[%clk 0:02:15]}  Ke5 {[%clk 0:00:46]} 36. Kd3 {[%clk 0:02:12]}  b5 {[%clk 0:00:38]} 37. Be3 {[%clk 0:02:04]}  Be7 {[%clk 0:00:35]} 38. f4+ {[%clk 0:02:00]}  Kd6 {[%clk 0:00:27]} 39. Bf2 {[%clk 0:01:57]}  Bf6 {[%clk 0:00:27]} 40. b3 {[%clk 0:01:54]}  Kc6 {[%clk 0:00:24]} 41. c4 {[%clk 0:01:50]}  dxc4+ {[%clk 0:00:25]} 42. bxc4 {[%clk 0:01:51]}  b4 {[%clk 0:00:25]} 43. Kc2 {[%clk 0:01:38]}  Be7 {[%clk 0:00:15]} 44. Kb3 {[%clk 0:01:27]}  Bc5 {[%clk 0:00:13]} 45. Bg3 {[%clk 0:01:21]}  a5 {[%clk 0:00:09]} 46. Ka4 {[%clk 0:01:21]}  Be3 {[%clk 0:00:09]} 47. Kxa5 {[%clk 0:01:13]}  Kc5 {[%clk 0:00:09]} 48. Be1 {[%clk 0:01:12]}  Bxf4 {[%clk 0:00:04]} 49. Bxb4+ {[%clk 0:01:11]}  Kxc4 {[%clk 0:00:05]} 50. Be7 {[%clk 0:01:03]}  Bd2+ {[%clk 0:00:01]} 51. Kb6 {[%clk 0:01:01]}  f4 {[%clk 0:00:02]} 52. a4 {[%clk 0:00:46]}  Be3+ {[%clk 0:00:01]} 53. Kb7 {[%clk 0:00:46]}  f3 {[%clk 0:00:01]} 54. a5 {[%clk 0:00:37]}  f2 {[%clk 0:00:02]} 55. Bc5 {[%clk 0:00:37]}  Bxc5 {[%clk 0:00:02]} 56. a6 {[%clk 0:00:37]}  f1=Q {[%clk 0:00:02]} 57. a7 {[%clk 0:00:37]}  Qf3+ {[%clk 0:00:03]} 58. Kb8 {[%clk 0:00:37]}  Bxa7+ {[%clk 0:00:03]} 59. Kc8 {[%clk 0:00:37]}  Qf7 {[%clk 0:00:02]} 60. Kd8 {[%clk 0:00:35]}  Bb6+ {[%clk 0:00:03]} 61. Kc8 {[%clk 0:00:36]}  Qc7# {[%clk 0:00:04]} 0-1


[Site "https://www.chess.com"]

[Event "Titled Tuesday Blitz June 27 Early 2023"]
[White "Komov, Roman"]
[Black "hsd2016"]
[WhiteFideId "24175714"]
[WhiteElo "2617"]
[BlackElo "2214"]
[Result "0-1"]
[Round "6"]
[TimeControl "180+2"]
[Date "2023.06.27"]
[WhiteClock "0:01:08"]
[BlackClock "0:01:03"]
[Board "94"]

1. e4 {[%clk 0:03:00]}  e5 {[%clk 0:02:59]} 2. Nf3 {[%clk 0:03:00]}  Nc6 {[%clk 0:02:59]} 3. Bc4 {[%clk 0:03:00]}  Nf6 {[%clk 0:02:59]} 4. d3 {[%clk 0:03:00]}  Bc5 {[%clk 0:02:59]} 5. c3 {[%clk 0:03:00]}  O-O {[%clk 0:02:59]} 6. O-O {[%clk 0:03:01]}  h6 {[%clk 0:03:00]} 7. Nbd2 {[%clk 0:03:00]}  a6 {[%clk 0:02:59]} 8. h3 {[%clk 0:02:57]}  d6 {[%clk 0:02:59]} 9. Bb3 {[%clk 0:02:58]}  Be6 {[%clk 0:02:57]} 10. Bc2 {[%clk 0:02:58]}  d5 {[%clk 0:02:54]} 11. exd5 {[%clk 0:02:59]}  Bxd5 {[%clk 0:02:54]} 12. Re1 {[%clk 0:02:58]}  Re8 {[%clk 0:02:54]} 13. Nf1 {[%clk 0:02:57]}  Qd7 {[%clk 0:02:51]} 14. Ng3 {[%clk 0:02:57]}  Rad8 {[%clk 0:02:51]} 15. Nh4 {[%clk 0:02:57]}  Be6 {[%clk 0:02:30]} 16. Bxh6 {[%clk 0:02:52]}  gxh6 {[%clk 0:02:22]} 17. Qc1 {[%clk 0:02:52]}  Bf8 {[%clk 0:02:20]} 18. d4 {[%clk 0:02:20]}  exd4 {[%clk 0:01:57]} 19. Qf4 {[%clk 0:02:20]}  Bg7 {[%clk 0:01:46]} 20. Rad1 {[%clk 0:02:09]}  Qd6 {[%clk 0:01:45]} 21. Qf3 {[%clk 0:02:08]}  Ne5 {[%clk 0:01:39]} 22. Qxb7 {[%clk 0:01:56]}  Bd5 {[%clk 0:01:17]} 23. Qa7 {[%clk 0:01:49]}  d3 {[%clk 0:01:10]} 24. Nhf5 {[%clk 0:01:34]}  dxc2 {[%clk 0:01:08]} 25. Nxd6 {[%clk 0:01:31]}  cxd1=Q {[%clk 0:01:08]} 26. Rxd1 {[%clk 0:01:32]}  Rxd6 {[%clk 0:01:08]} 27. Nf5 {[%clk 0:01:31]}  Rd7 {[%clk 0:01:04]} 28. Qe3 {[%clk 0:01:08]}  Nf3+ {[%clk 0:01:03]} 0-1


[Site "https://www.chess.com"]

[Event "Titled Tuesday Blitz June 27 Early 2023"]
[White "Kuzmin, Roman"]
[Black "Sevian, Samuel"]
[WhiteFideId "44134932"]
[BlackFideId "2040506"]
[WhiteElo "2532"]
[BlackElo "3044"]
[Result "0-1"]
[Round "6"]
[TimeControl "180+2"]
[Date "2023.06.27"]
[WhiteClock "0:00:44"]
[BlackClock "0:02:22"]
[Board "95"]

1. e4 {[%clk 0:02:49]}  b6 {[%clk 0:02:58]} 2. d4 {[%clk 0:02:48]}  Bb7 {[%clk 0:02:59]} 3. c4 {[%clk 0:02:47]}  Bxe4 {[%clk 0:02:58]} 4. Nc3 {[%clk 0:02:47]}  Bb7 {[%clk 0:02:59]} 5. Nf3 {[%clk 0:02:44]}  Nf6 {[%clk 0:02:58]} 6. Bd3 {[%clk 0:02:37]}  e6 {[%clk 0:02:58]} 7. Bg5 {[%clk 0:02:35]}  Be7 {[%clk 0:02:58]} 8. Qd2 {[%clk 0:02:29]}  d5 {[%clk 0:02:58]} 9. O-O-O {[%clk 0:02:26]}  Nbd7 {[%clk 0:02:57]} 10. Ne5 {[%clk 0:02:23]}  dxc4 {[%clk 0:02:41]} 11. Bxc4 {[%clk 0:02:11]}  Nxe5 {[%clk 0:02:41]} 12. dxe5 {[%clk 0:02:12]}  Qxd2+ {[%clk 0:02:41]} 13. Rxd2 {[%clk 0:02:13]}  Nd7 {[%clk 0:02:41]} 14. Bxe7 {[%clk 0:02:10]}  Kxe7 {[%clk 0:02:42]} 15. f4 {[%clk 0:02:10]}  Rhd8 {[%clk 0:02:41]} 16. Nb5 {[%clk 0:02:08]}  a6 {[%clk 0:02:40]} 17. Nc3 {[%clk 0:01:56]}  b5 {[%clk 0:02:40]} 18. Bd3 {[%clk 0:01:54]}  Nc5 {[%clk 0:02:39]} 19. Bc2 {[%clk 0:01:55]}  Rxd2 {[%clk 0:02:38]} 20. Kxd2 {[%clk 0:01:56]}  Rd8+ {[%clk 0:02:39]} 21. Ke3 {[%clk 0:01:53]}  g6 {[%clk 0:02:37]} 22. b4 {[%clk 0:01:48]}  Nd7 {[%clk 0:02:37]} 23. Be4 {[%clk 0:01:44]}  Bxe4 {[%clk 0:02:35]} 24. Nxe4 {[%clk 0:01:45]}  Nb6 {[%clk 0:02:36]} 25. Rc1 {[%clk 0:01:36]}  Nc4+ {[%clk 0:02:36]} 26. Ke2 {[%clk 0:01:37]}  Rd4 {[%clk 0:02:36]} 27. Nc5 {[%clk 0:01:34]}  Rd2+ {[%clk 0:02:36]} 28. Kf3 {[%clk 0:01:33]}  Rxa2 {[%clk 0:02:37]} 29. Rd1 {[%clk 0:01:30]}  Rd2 {[%clk 0:02:37]} 30. Rxd2 {[%clk 0:01:29]}  Nxd2+ {[%clk 0:02:38]} 31. Ke2 {[%clk 0:01:26]}  Nc4 {[%clk 0:02:37]} 32. Nxa6 {[%clk 0:01:27]}  Kd7 {[%clk 0:02:37]} 33. Nc5+ {[%clk 0:01:25]}  Kc6 {[%clk 0:02:37]} 34. Ne4 {[%clk 0:01:24]}  h6 {[%clk 0:02:34]} 35. Kd3 {[%clk 0:01:22]}  Nb6 {[%clk 0:02:34]} 36. Ke3 {[%clk 0:00:50]}  Nd5+ {[%clk 0:02:26]} 37. Kf3 {[%clk 0:00:50]}  Nxb4 {[%clk 0:02:26]} 38. g4 {[%clk 0:00:50]}  Nd5 {[%clk 0:02:25]} 39. h4 {[%clk 0:00:48]}  b4 {[%clk 0:02:26]} 40. h5 {[%clk 0:00:45]}  gxh5 {[%clk 0:02:22]} 41. gxh5 {[%clk 0:00:46]}  b3 {[%clk 0:02:23]} 42. Ng5 {[%clk 0:00:44]}  b2 {[%clk 0:02:22]} 0-1


[Site "https://www.chess.com"]

[Event "Titled Tuesday Blitz June 27 Early 2023"]
[White "Lavrik, Dmitry"]
[Black "tetrix83"]
[WhiteFideId "24113190"]
[WhiteElo "2697"]
[BlackElo "2520"]
[Result "1-0"]
[Round "6"]
[TimeControl "180+2"]
[Date "2023.06.27"]
[WhiteClock "0:02:37"]
[BlackClock "0:01:51"]
[Board "97"]

1. c4 {[%clk 0:03:00]}  Nf6 {[%clk 0:02:58]} 2. Nf3 {[%clk 0:03:00]}  g6 {[%clk 0:02:58]} 3. Nc3 {[%clk 0:02:59]}  Bg7 {[%clk 0:02:59]} 4. e4 {[%clk 0:02:58]}  O-O {[%clk 0:03:00]} 5. d4 {[%clk 0:02:59]}  d6 {[%clk 0:03:00]} 6. Be2 {[%clk 0:02:59]}  e5 {[%clk 0:03:01]} 7. O-O {[%clk 0:02:59]}  Na6 {[%clk 0:03:00]} 8. Re1 {[%clk 0:02:57]}  Qe7 {[%clk 0:02:59]} 9. Bg5 {[%clk 0:02:49]}  c6 {[%clk 0:02:52]} 10. c5 {[%clk 0:02:47]}  exd4 {[%clk 0:02:45]} 11. cxd6 {[%clk 0:02:45]}  Qe6 {[%clk 0:02:00]} 12. Nxd4 {[%clk 0:02:37]}  Qxd6 {[%clk 0:02:00]} 13. Bxa6 {[%clk 0:02:37]}  bxa6 {[%clk 0:01:51]} 14. e5 {[%clk 0:02:37]} 1-0


[Site "https://www.chess.com"]

[Event "Titled Tuesday Blitz June 27 Early 2023"]
[White "Bagwe Gaurang"]
[Black "Weishaeutel, Moritz"]
[WhiteFideId "45039895"]
[BlackFideId "12967300"]
[WhiteElo "2511"]
[BlackElo "2645"]
[Result "0-1"]
[Round "6"]
[TimeControl "180+2"]
[Date "2023.06.27"]
[WhiteClock "0:00:00"]
[BlackClock "0:00:04"]
[Board "100"]

1. c4 {[%clk 0:03:00]}  g6 {[%clk 0:02:52]} 2. e4 {[%clk 0:02:59]}  Bg7 {[%clk 0:02:53]} 3. g3 {[%clk 0:02:54]}  c5 {[%clk 0:02:51]} 4. Bg2 {[%clk 0:02:54]}  Nc6 {[%clk 0:02:51]} 5. Ne2 {[%clk 0:02:54]}  e6 {[%clk 0:02:48]} 6. d3 {[%clk 0:02:53]}  Nge7 {[%clk 0:02:48]} 7. Nbc3 {[%clk 0:02:48]}  O-O {[%clk 0:02:48]} 8. O-O {[%clk 0:02:48]}  d6 {[%clk 0:02:48]} 9. h3 {[%clk 0:02:47]}  a6 {[%clk 0:02:45]} 10. a4 {[%clk 0:02:46]}  Rb8 {[%clk 0:02:45]} 11. Kh2 {[%clk 0:02:46]}  b6 {[%clk 0:02:36]} 12. Bd2 {[%clk 0:02:22]}  Bb7 {[%clk 0:02:33]} 13. Qc1 {[%clk 0:02:22]}  Nb4 {[%clk 0:02:32]} 14. Qb1 {[%clk 0:02:20]}  d5 {[%clk 0:02:30]} 15. Bg5 {[%clk 0:02:02]}  h6 {[%clk 0:02:03]} 16. Bxe7 {[%clk 0:02:02]}  Qxe7 {[%clk 0:02:04]} 17. a5 {[%clk 0:01:56]}  dxc4 {[%clk 0:01:34]} 18. dxc4 {[%clk 0:01:55]}  bxa5 {[%clk 0:01:33]} 19. Rxa5 {[%clk 0:01:54]}  Nc6 {[%clk 0:01:34]} 20. Ra4 {[%clk 0:01:45]}  Nd4 {[%clk 0:01:33]} 21. Rd1 {[%clk 0:01:40]}  Bc6 {[%clk 0:01:29]} 22. Ra2 {[%clk 0:01:29]}  Qb7 {[%clk 0:01:28]} 23. Qc1 {[%clk 0:01:09]}  Nxe2 {[%clk 0:01:20]} 24. Nxe2 {[%clk 0:01:08]}  Bxe4 {[%clk 0:01:21]} 25. Nf4 {[%clk 0:00:55]}  Bxg2 {[%clk 0:00:54]} 26. Nxg2 {[%clk 0:00:54]}  Kh7 {[%clk 0:00:48]} 27. Qf4 {[%clk 0:00:44]}  Qb3 {[%clk 0:00:45]} 28. Raa1 {[%clk 0:00:39]}  Rb4 {[%clk 0:00:36]} 29. Ne3 {[%clk 0:00:33]}  Qxb2 {[%clk 0:00:20]} 30. Rxa6 {[%clk 0:00:32]}  Bd4 {[%clk 0:00:16]} 31. Ng4 {[%clk 0:00:32]}  h5 {[%clk 0:00:15]} 32. Rxd4 {[%clk 0:00:25]}  Qxd4 {[%clk 0:00:13]} 33. Qh6+ {[%clk 0:00:21]}  Kg8 {[%clk 0:00:14]} 34. Rd6 {[%clk 0:00:20]}  Qg7 {[%clk 0:00:12]} 35. Qxg7+ {[%clk 0:00:19]}  Kxg7 {[%clk 0:00:13]} 36. Ne5 {[%clk 0:00:20]}  Rb2 {[%clk 0:00:10]} 37. Kg2 {[%clk 0:00:20]}  Re2 {[%clk 0:00:11]} 38. Nd3 {[%clk 0:00:19]}  Rd2 {[%clk 0:00:10]} 39. Kf3 {[%clk 0:00:18]}  Rc2 {[%clk 0:00:10]} 40. Ne5 {[%clk 0:00:18]}  Rb8 {[%clk 0:00:10]} 41. Rd7 {[%clk 0:00:18]}  Rf8 {[%clk 0:00:09]} 42. g4 {[%clk 0:00:18]}  hxg4+ {[%clk 0:00:09]} 43. hxg4 {[%clk 0:00:19]}  Kf6 {[%clk 0:00:08]} 44. Nd3 {[%clk 0:00:18]}  Rxc4 {[%clk 0:00:06]} 45. Ke3 {[%clk 0:00:18]}  Rd4 {[%clk 0:00:06]} 46. Rc7 {[%clk 0:00:17]}  Rxg4 {[%clk 0:00:06]} 47. Nxc5 {[%clk 0:00:17]}  Kg7 {[%clk 0:00:05]} 48. Nxe6+ {[%clk 0:00:16]}  Kg8 {[%clk 0:00:05]} 49. Nxf8 {[%clk 0:00:17]}  Kxf8 {[%clk 0:00:06]} 50. Rc8+ {[%clk 0:00:17]}  Kg7 {[%clk 0:00:07]} 51. Kf3 {[%clk 0:00:17]}  Rg5 {[%clk 0:00:07]} 52. Rc7 {[%clk 0:00:17]}  Rf5+ {[%clk 0:00:08]} 53. Kg2 {[%clk 0:00:18]}  Rf6 {[%clk 0:00:09]} 54. Ra7 {[%clk 0:00:18]}  Re6 {[%clk 0:00:10]} 55. Rb7 {[%clk 0:00:18]}  Kf6 {[%clk 0:00:11]} 56. Ra7 {[%clk 0:00:18]}  Re7 {[%clk 0:00:12]} 57. Ra6+ {[%clk 0:00:18]}  Kf5 {[%clk 0:00:12]} 58. Ra5+ {[%clk 0:00:18]}  Re5 {[%clk 0:00:12]} 59. Ra4 {[%clk 0:00:18]}  f6 {[%clk 0:00:12]} 60. f3 {[%clk 0:00:17]}  g5 {[%clk 0:00:12]} 61. Kg3 {[%clk 0:00:18]}  Re3 {[%clk 0:00:12]} 62. Ra5+ {[%clk 0:00:18]}  Kg6 {[%clk 0:00:13]} 63. Rb5 {[%clk 0:00:18]}  Re6 {[%clk 0:00:13]} 64. Ra5 {[%clk 0:00:18]}  f5 {[%clk 0:00:14]} 65. Rb5 {[%clk 0:00:17]}  Ra6 {[%clk 0:00:15]} 66. Rc5 {[%clk 0:00:17]}  Ra1 {[%clk 0:00:15]} 67. Rc6+ {[%clk 0:00:18]}  Kh5 {[%clk 0:00:15]} 68. Rc8 {[%clk 0:00:18]}  f4+ {[%clk 0:00:14]} 69. Kh3 {[%clk 0:00:16]}  Rh1+ {[%clk 0:00:13]} 70. Kg2 {[%clk 0:00:16]}  Ra1 {[%clk 0:00:14]} 71. Rh8+ {[%clk 0:00:16]}  Kg6 {[%clk 0:00:14]} 72. Rg8+ {[%clk 0:00:16]}  Kf6 {[%clk 0:00:14]} 73. Rf8+ {[%clk 0:00:16]}  Kg7 {[%clk 0:00:14]} 74. Rf5 {[%clk 0:00:16]}  Kg6 {[%clk 0:00:14]} 75. Rf8 {[%clk 0:00:16]}  Ra3 {[%clk 0:00:14]} 76. Rg8+ {[%clk 0:00:15]}  Kf6 {[%clk 0:00:15]} 77. Rf8+ {[%clk 0:00:15]}  Kg7 {[%clk 0:00:16]} 78. Rb8 {[%clk 0:00:16]}  Kg6 {[%clk 0:00:15]} 79. Rg8+ {[%clk 0:00:15]}  Kf5 {[%clk 0:00:16]} 80. Rf8+ {[%clk 0:00:15]}  Ke5 {[%clk 0:00:15]} 81. Rg8 {[%clk 0:00:15]}  Kd4 {[%clk 0:00:09]} 82. Rxg5 {[%clk 0:00:14]}  Ra2+ {[%clk 0:00:09]} 83. Kf1 {[%clk 0:00:12]}  Ke3 {[%clk 0:00:09]} 84. Rb5 {[%clk 0:00:11]}  Ra3 {[%clk 0:00:06]} 85. Rb1 {[%clk 0:00:09]}  Kxf3 {[%clk 0:00:06]} 86. Rd1 {[%clk 0:00:08]}  Kg3 {[%clk 0:00:05]} 87. Kg1 {[%clk 0:00:08]}  f3 {[%clk 0:00:04]} 88. Kh1 {[%clk 0:00:06]}  Ra2 {[%clk 0:00:05]} 89. Rg1+ {[%clk 0:00:06]}  Kh3 {[%clk 0:00:05]} 90. Rf1 {[%clk 0:00:06]}  Rh2+ {[%clk 0:00:02]} 91. Kg1 {[%clk 0:00:07]}  Rg2+ {[%clk 0:00:03]} 92. Kh1 {[%clk 0:00:07]}  f2 {[%clk 0:00:03]} 93. Ra1 {[%clk 0:00:06]}  Rg3 {[%clk 0:00:03]} 94. Rf1 {[%clk 0:00:06]}  Rf3 {[%clk 0:00:03]} 95. Rg1 {[%clk 0:00:01]}  fxg1=Q+ {[%clk 0:00:03]} 96. Kxg1 {[%clk 0:00:00]}  Kg3 {[%clk 0:00:04]} 0-1


[Site "https://www.chess.com"]

[Event "Titled Tuesday Blitz June 27 Early 2023"]
[White "Morgunov, Anatoly"]
[Black "Ingebretsen, Jens E"]
[WhiteFideId "4145909"]
[BlackFideId "1522965"]
[WhiteElo "2458"]
[BlackElo "2596"]
[Result "1-0"]
[Round "6"]
[TimeControl "180+2"]
[Date "2023.06.27"]
[WhiteClock "0:00:34"]
[BlackClock "0:00:48"]
[Board "107"]

1. d4 {[%clk 0:02:08]}  Nf6 {[%clk 0:02:29]} 2. c4 {[%clk 0:02:08]}  e6 {[%clk 0:02:30]} 3. g3 {[%clk 0:02:08]}  d5 {[%clk 0:02:25]} 4. Bg2 {[%clk 0:02:08]}  Bb4+ {[%clk 0:02:25]} 5. Bd2 {[%clk 0:02:07]}  Be7 {[%clk 0:02:26]} 6. Nf3 {[%clk 0:02:08]}  O-O {[%clk 0:02:26]} 7. O-O {[%clk 0:02:08]}  c6 {[%clk 0:02:27]} 8. Qc2 {[%clk 0:02:08]}  b6 {[%clk 0:02:28]} 9. Rd1 {[%clk 0:02:07]}  Bb7 {[%clk 0:02:28]} 10. Bf4 {[%clk 0:02:07]}  Nbd7 {[%clk 0:02:29]} 11. Ne5 {[%clk 0:02:05]}  Nxe5 {[%clk 0:02:26]} 12. dxe5 {[%clk 0:02:05]}  Nd7 {[%clk 0:02:26]} 13. cxd5 {[%clk 0:02:03]}  cxd5 {[%clk 0:02:26]} 14. e4 {[%clk 0:02:03]}  Rc8 {[%clk 0:02:26]} 15. Nc3 {[%clk 0:02:03]}  dxe4 {[%clk 0:02:24]} 16. Bxe4 {[%clk 0:01:54]}  Bxe4 {[%clk 0:02:23]} 17. Qxe4 {[%clk 0:01:54]}  Qc7 {[%clk 0:02:15]} 18. Rac1 {[%clk 0:01:49]}  Nc5 {[%clk 0:02:13]} 19. Qf3 {[%clk 0:01:42]}  Qb7 {[%clk 0:02:03]} 20. Qxb7 {[%clk 0:01:35]}  Nxb7 {[%clk 0:02:00]} 21. Rd7 {[%clk 0:01:34]}  g5 {[%clk 0:01:29]} 22. Rxe7 {[%clk 0:01:22]}  gxf4 {[%clk 0:01:27]} 23. Rxb7 {[%clk 0:01:22]}  fxg3 {[%clk 0:01:25]} 24. hxg3 {[%clk 0:01:23]}  Rc5 {[%clk 0:01:23]} 25. f4 {[%clk 0:01:16]}  Ra8 {[%clk 0:01:19]} 26. Rd1 {[%clk 0:01:13]}  a5 {[%clk 0:01:09]} 27. Rdd7 {[%clk 0:01:11]}  Rf8 {[%clk 0:01:10]} 28. Rbc7 {[%clk 0:01:09]}  Kg7 {[%clk 0:01:10]} 29. Rxc5 {[%clk 0:01:09]}  bxc5 {[%clk 0:01:10]} 30. Kf2 {[%clk 0:01:00]}  c4 {[%clk 0:01:08]} 31. Rd2 {[%clk 0:00:55]}  Kg6 {[%clk 0:01:07]} 32. Kf3 {[%clk 0:00:54]}  h5 {[%clk 0:01:07]} 33. Ne4 {[%clk 0:00:53]}  Rh8 {[%clk 0:01:03]} 34. Rc2 {[%clk 0:00:51]}  h4 {[%clk 0:01:03]} 35. g4 {[%clk 0:00:52]}  h3 {[%clk 0:01:03]} 36. Rh2 {[%clk 0:00:52]}  Rc8 {[%clk 0:00:56]} 37. Rxh3 {[%clk 0:00:47]}  Rb8 {[%clk 0:00:56]} 38. Rh2 {[%clk 0:00:46]}  Rd8 {[%clk 0:00:54]} 39. Nd6 {[%clk 0:00:45]}  f6 {[%clk 0:00:52]} 40. Ke4 {[%clk 0:00:43]}  fxe5 {[%clk 0:00:52]} 41. Kxe5 {[%clk 0:00:43]}  Rf8 {[%clk 0:00:52]} 42. Rc2 {[%clk 0:00:42]}  Rb8 {[%clk 0:00:51]} 43. Nxc4 {[%clk 0:00:40]}  a4 {[%clk 0:00:48]} 44. a3 {[%clk 0:00:38]}  Rc8 {[%clk 0:00:48]} 45. f5+ {[%clk 0:00:37]}  Kg5 {[%clk 0:00:48]} 46. fxe6 {[%clk 0:00:36]}  Rc5+ {[%clk 0:00:48]} 47. Kd6 {[%clk 0:00:36]}  Rb5 {[%clk 0:00:47]} 48. e7 {[%clk 0:00:36]}  Rb8 {[%clk 0:00:48]} 49. Kd7 {[%clk 0:00:36]}  Rb7+ {[%clk 0:00:48]} 50. Ke6 {[%clk 0:00:36]}  Rb6+ {[%clk 0:00:48]} 51. Nxb6 {[%clk 0:00:35]}  Kh6 {[%clk 0:00:48]} 52. e8=Q {[%clk 0:00:34]}  Kh7 {[%clk 0:00:49]} 53. Qf7+ {[%clk 0:00:34]}  Kh8 {[%clk 0:00:48]} 54. Rh2# {[%clk 0:00:34]} 1-0


[Site "https://www.chess.com"]

[Event "Titled Tuesday Blitz June 27 Early 2023"]
[White "De La Villa Garcia, Jesus Maria"]
[Black "whiteglovethief"]
[WhiteFideId "2200040"]
[WhiteElo "2593"]
[BlackElo "2450"]
[Result "1-0"]
[Round "6"]
[TimeControl "180+2"]
[Date "2023.06.27"]
[WhiteClock "0:01:46"]
[BlackClock "0:00:56"]
[Board "108"]

1. c4 {[%clk 0:02:54]}  Nf6 {[%clk 0:02:57]} 2. Nc3 {[%clk 0:02:54]}  g6 {[%clk 0:02:58]} 3. Nf3 {[%clk 0:02:53]}  d6 {[%clk 0:02:58]} 4. d4 {[%clk 0:02:53]}  Bg7 {[%clk 0:02:59]} 5. g3 {[%clk 0:02:54]}  O-O {[%clk 0:02:59]} 6. Bg2 {[%clk 0:02:54]}  c5 {[%clk 0:02:58]} 7. O-O {[%clk 0:02:55]}  cxd4 {[%clk 0:02:57]} 8. Nxd4 {[%clk 0:02:56]}  Nc6 {[%clk 0:02:55]} 9. Nxc6 {[%clk 0:02:53]}  bxc6 {[%clk 0:02:56]} 10. Bxc6 {[%clk 0:02:53]}  Rb8 {[%clk 0:02:56]} 11. Bg2 {[%clk 0:02:53]}  Be6 {[%clk 0:02:53]} 12. b3 {[%clk 0:02:50]}  Nd7 {[%clk 0:02:48]} 13. Bb2 {[%clk 0:02:49]}  Bxc4 {[%clk 0:02:45]} 14. Qd2 {[%clk 0:02:47]}  Be6 {[%clk 0:02:43]} 15. Rac1 {[%clk 0:02:46]}  Qa5 {[%clk 0:02:42]} 16. Rfd1 {[%clk 0:02:47]}  Qh5 {[%clk 0:02:38]} 17. Nd5 {[%clk 0:02:25]}  Bxd5 {[%clk 0:02:37]} 18. Bxg7 {[%clk 0:02:25]}  Kxg7 {[%clk 0:02:32]} 19. Bxd5 {[%clk 0:02:24]}  Nf6 {[%clk 0:02:29]} 20. Bf3 {[%clk 0:02:22]}  Qe5 {[%clk 0:02:17]} 21. Rc7 {[%clk 0:02:21]}  a5 {[%clk 0:02:13]} 22. Qd4 {[%clk 0:02:19]}  Qxd4 {[%clk 0:02:07]} 23. Rxd4 {[%clk 0:02:19]}  Rfe8 {[%clk 0:02:01]} 24. Ra4 {[%clk 0:02:14]}  Rb5 {[%clk 0:01:59]} 25. Ra7 {[%clk 0:02:10]}  d5 {[%clk 0:01:47]} 26. R4xa5 {[%clk 0:02:08]}  Rxa5 {[%clk 0:01:46]} 27. Rxa5 {[%clk 0:02:09]}  Rd8 {[%clk 0:01:44]} 28. b4 {[%clk 0:02:05]}  e5 {[%clk 0:01:44]} 29. e3 {[%clk 0:01:58]}  e4 {[%clk 0:01:44]} 30. Be2 {[%clk 0:01:58]}  d4 {[%clk 0:01:45]} 31. exd4 {[%clk 0:01:59]}  Rxd4 {[%clk 0:01:45]} 32. b5 {[%clk 0:01:58]}  Rd2 {[%clk 0:01:44]} 33. Bf1 {[%clk 0:01:57]}  Ng4 {[%clk 0:01:44]} 34. b6 {[%clk 0:01:54]}  Rd8 {[%clk 0:01:14]} 35. b7 {[%clk 0:01:50]}  Rb8 {[%clk 0:01:15]} 36. Ba6 {[%clk 0:01:49]}  e3 {[%clk 0:01:07]} 37. fxe3 {[%clk 0:01:47]}  Nxe3 {[%clk 0:00:56]} 38. Rc5 {[%clk 0:01:46]} 1-0


[Site "https://www.chess.com"]